[Event "Championnat National du Sénégal"]
[Site "Arène National, Pikine, Senegal"]
[Date "2022.11.12"]
[Round "2.2"]
[White "Ba, El Hadji Seydou Nourou"]
[Black "Valerevna, Nadezhda Marochkina"]
[Result "0-1"]
[TimeControl "01.30 fb .30"]
[WhiteElo "1644"]
[BlackElo "1668"]

1. e4 {[%clk 01:30:57]} {[%emt 00:00:02]} c6 {[%clk 01:29:34]} {[%emt
00:01:27]} 2. Nc3 {[%clk 01:31:19]} {[%emt 00:00:08]} d5 {[%clk 01:29:35]}
{[%emt 00:00:30]} 3. Nf3 {[%clk 01:31:42]} {[%emt 00:00:07]} Nf6 {[%clk
01:29:53]} {[%emt 00:00:13]} 4. e5 {[%clk 01:32:03]} {[%emt 00:00:07]} Ne4
{[%clk 01:30:04]} {[%emt 00:00:20]} 5. Ne2 {[%clk 01:32:18]} {[%emt 00:00:14]}
Bf5 {[%clk 01:28:04]} {[%emt 00:02:29]} 6. d3 {[%clk 01:26:37]} {[%emt
00:06:11]} Nc5 {[%clk 01:27:25]} {[%emt 00:01:08]} 7. Ng3 {[%clk 01:26:35]}
{[%emt 00:00:33]} Bg6 {[%clk 01:27:22]} {[%emt 00:00:33]} 8. h4 {[%clk
01:17:58]} {[%emt 00:09:08]} h6 {[%clk 01:26:46]} {[%emt 00:01:06]} 9. h5
{[%clk 01:16:54]} {[%emt 00:01:34]} Bh7 {[%clk 01:27:08]} {[%emt 00:00:08]} 10.
d4 {[%clk 01:16:31]} {[%emt 00:00:53]} Ne4 {[%clk 01:26:22]} {[%emt 00:01:15]}
11. Bd3 {[%clk 01:16:14]} {[%emt 00:00:48]} Nxg3 {[%clk 01:24:54]} {[%emt
00:01:58]} 12. fxg3 {[%clk 01:16:34]} {[%emt 00:00:10]} Bxd3 {[%clk 01:25:09]}
{[%emt 00:00:15]} 13. Qxd3 {[%clk 01:16:58]} {[%emt 00:00:06]} e6 {[%clk
01:24:10]} {[%emt 00:01:29]} 14. Be3 {[%clk 01:15:18]} {[%emt 00:02:08]} Qa5+
{[%clk 01:22:26]} {[%emt 00:02:13]} 15. c3 {[%clk 01:11:43]} {[%emt 00:04:06]}
Nd7 {[%clk 01:21:15]} {[%emt 00:01:40]} 16. g4 {[%clk 01:05:39]} {[%emt
00:06:34]} c5 {[%clk 01:15:57]} {[%emt 00:05:47]} 17. O-O {[%clk 00:56:37]}
{[%emt 00:09:33]} Nb6 {[%clk 01:10:43]} {[%emt 00:05:45]} 18. Nh4 {[%clk
00:48:16]} {[%emt 00:08:50]} Nc4 {[%clk 01:04:12]} {[%emt 00:07:01]} 19. Bc1
{[%clk 00:45:38]} {[%emt 00:03:08]} cxd4 {[%clk 00:55:18]} {[%emt 00:09:25]} 20.
cxd4 {[%clk 00:45:05]} {[%emt 00:01:04]} Qb6 {[%clk 00:54:45]} {[%emt
00:01:02]} 21. Kh1 {[%clk 00:44:01]} {[%emt 00:01:34]} Be7 {[%clk 00:51:59]}
{[%emt 00:03:16]} 22. Nf3 {[%clk 00:39:14]} {[%emt 00:05:18]} Nxb2 {[%clk
00:51:31]} {[%emt 00:00:58]} 23. Bxb2 {[%clk 00:38:09]} {[%emt 00:01:35]} Qxb2
{[%clk 00:51:53]} {[%emt 00:00:07]} 24. Rab1 {[%clk 00:33:46]} {[%emt
00:04:53]} Qxa2 {[%clk 00:46:37]} {[%emt 00:05:46]} 25. Qb5+ {[%clk 00:33:43]}
{[%emt 00:00:33]} Kf8 {[%clk 00:46:50]} {[%emt 00:00:17]} 26. Qxb7 {[%clk
00:33:49]} {[%emt 00:00:23]} Re8 {[%clk 00:47:04]} {[%emt 00:00:16]} 27. Ra1
{[%clk 00:25:59]} {[%emt 00:08:21]} Qc4 {[%clk 00:47:05]} {[%emt 00:00:28]} 28.
Rxa7 {[%clk 00:25:01]} {[%emt 00:01:28]} Qxf1+ {[%clk 00:43:59]} {[%emt
00:03:36]} 29. Kh2 {[%clk 00:25:10]} {[%emt 00:00:21]} Qc4 {[%clk 00:43:17]}
{[%emt 00:01:08]} 30. Ra8 {[%clk 00:22:12]} {[%emt 00:03:32]} Qb4 {[%clk
00:40:21]} {[%emt 00:03:24]} 31. Qc6 {[%clk 00:21:51]} {[%emt 00:00:52]} Rb8
{[%clk 00:39:54]} {[%emt 00:00:57]} 32. Qc8+ {[%clk 00:19:51]} {[%emt
00:02:30]} Rxc8 {[%clk 00:39:54]} {[%emt 00:00:30]} 33. Rxc8+ {[%clk 00:20:12]}
{[%emt 00:00:09]} Bd8 {[%clk 00:40:23]} {[%emt 00:00:02]} 34. Rxd8+ {[%clk
00:20:30]} {[%emt 00:00:12]} Ke7 {[%clk 00:40:44]} {[%emt 00:00:08]} 35. Rxh8
{[%clk 00:20:54]} {[%emt 00:00:06]} f6 {[%clk 00:39:26]} {[%emt 00:01:48]} 36.
exf6+ {[%clk 00:18:15]} {[%emt 00:03:10]} Kxf6 {[%clk 00:39:47]} {[%emt
00:00:09]} 37. Ne5 {[%clk 00:17:52]} {[%emt 00:00:52]} Qxd4 {[%clk 00:39:17]}
{[%emt 00:00:59]} 38. Nc6 {[%clk 00:11:25]} {[%emt 00:06:58]} Qxg4 {[%clk
00:39:17]} {[%emt 00:00:29]} 39. Rf8+ {[%clk 00:11:34]} {[%emt 00:00:20]} Kg5
{[%clk 00:39:00]} {[%emt 00:00:46]} 40. Rf3 {[%clk 00:11:01]} {[%emt 00:01:06]}
Qh4+ {[%clk 00:37:50]} {[%emt 00:01:37]} 41. Rh3 {[%clk 00:10:51]} {[%emt
00:00:41]} Qf4+ {[%clk 00:38:00]} {[%emt 00:00:17]} 42. Rg3+ {[%clk 00:09:16]}
{[%emt 00:02:09]} Kh4 {[%clk 00:38:21]} {[%emt 00:00:09]} 43. Ne7 {[%clk
00:07:10]} {[%emt 00:02:36]} Qxg3+ {[%clk 00:38:18]} {[%emt 00:00:32]} 44. Kh1
{[%clk 00:07:30]} {[%emt 00:00:10]} Kxh5 {[%clk 00:38:36]} {[%emt 00:00:13]} 45.
Ng8 {[%clk 00:07:16]} {[%emt 00:00:44]} d4 {[%clk 00:38:40]} {[%emt 00:00:26]}
46. Ne7 {[%clk 00:06:24]} {[%emt 00:01:22]} d3 {[%clk 00:39:02]} {[%emt
00:00:08]} 47. Nf5 {[%clk 00:06:38]} {[%emt 00:00:16]} exf5 {[%clk 00:39:15]}
{[%emt 00:00:17]} 48. Kg1 {[%clk 00:06:40]} {[%emt 00:00:28]} d2 {[%clk
00:39:38]} {[%emt 00:00:06]} 49. Kh1 {[%clk 00:07:02]} {[%emt 00:00:09]} d1=R#
{[%clk 00:39:59]} {[%emt 00:00:09]} 0-1

[Event "Championnat National du Sénégal"]
[Site "Arène National, Pikine, Senegal"]
[Date "2022.11.12"]
[Round "2.3"]
[White "CM Wane, Al Hassane"]
[Black "Diatta, Robert Kaundum A."]
[Result "1-0"]
[TimeControl "01.30 fb .30"]
[WhiteElo "1789"]
[BlackElo "1635"]

1. Nf3 {[%clk 01:30:30]} {[%emt 00:01:44]} d5 {[%clk 01:29:03]} {[%emt
00:02:01]} 2. d4 {[%clk 01:31:19]} {[%emt 00:00:10]} Bf5 {[%clk 01:28:36]}
{[%emt 00:00:56]} 3. Bf4 {[%clk 01:31:26]} {[%emt 00:00:23]} e6 {[%clk
01:27:03]} {[%emt 00:02:02]} 4. h3 {[%clk 01:31:36]} {[%emt 00:00:21]} Bd6
{[%clk 01:27:01]} {[%emt 00:00:32]} 5. Bg5 {[%clk 01:28:23]} {[%emt 00:03:42]}
Ne7 {[%clk 01:26:59]} {[%emt 00:00:33]} 6. e3 {[%clk 01:28:15]} {[%emt
00:00:38]} a6 {[%clk 01:25:59]} {[%emt 00:01:30]} 7. Bd3 {[%clk 01:28:30]}
{[%emt 00:00:16]} Bg6 {[%clk 01:25:23]} {[%emt 00:01:05]} 8. c4 {[%clk
01:24:35]} {[%emt 00:04:25]} Bb4+ {[%clk 01:21:06]} {[%emt 00:04:44]} 9. Nc3
{[%clk 01:24:52]} {[%emt 00:00:16]} c6 {[%clk 01:20:43]} {[%emt 00:00:52]} 10.
O-O {[%clk 01:20:55]} {[%emt 00:04:28]} O-O {[%clk 01:15:41]} {[%emt 00:05:31]}
11. c5 {[%clk 01:21:13]} {[%emt 00:00:12]} Bxc3 {[%clk 01:12:34]} {[%emt
00:03:39]} 12. bxc3 {[%clk 01:21:11]} {[%emt 00:00:32]} b6 {[%clk 01:12:36]}
{[%emt 00:00:27]} 13. cxb6 {[%clk 01:21:24]} {[%emt 00:00:17]} f6 {[%clk
01:12:43]} {[%emt 00:00:22]} 14. Bf4 {[%clk 01:19:46]} {[%emt 00:02:08]} Qxb6
{[%clk 01:12:04]} {[%emt 00:01:09]} 15. Rb1 {[%clk 01:19:58]} {[%emt 00:00:18]}
Qa5 {[%clk 01:11:00]} {[%emt 00:01:33]} 16. Rb7 {[%clk 01:13:46]} {[%emt
00:06:44]} Bxd3 {[%clk 01:10:14]} {[%emt 00:01:16]} 17. Qxd3 {[%clk 01:14:00]}
{[%emt 00:00:17]} Ng6 {[%clk 01:10:36]} {[%emt 00:00:07]} 18. Bd6 {[%clk
01:12:35]} {[%emt 00:01:55]} Re8 {[%clk 01:07:59]} {[%emt 00:03:07]} 19. Rfb1
{[%clk 01:12:17]} {[%emt 00:00:49]} e5 {[%clk 01:05:53]} {[%emt 00:02:36]} 20.
dxe5 {[%clk 01:09:23]} {[%emt 00:03:24]} fxe5 {[%clk 01:05:20]} {[%emt
00:01:03]} 21. Qf5 {[%clk 01:09:38]} {[%emt 00:00:15]} 1-0

[Event "Championnat National du Sénégal"]
[Site "Arène National, Pikine, Senegal"]
[Date "2022.11.12"]
[Round "2.5"]
[White "Bodin-Hulin, Thomas"]
[Black "Diankha, Bara"]
[Result "1-0"]
[TimeControl "01.30 fb .30"]
[WhiteElo "1838"]
[BlackElo "1400"]

1. e4 {[%clk 01:23:39]} {[%emt 00:07:20]} c6 {[%clk 01:30:09]} {[%emt
00:00:51]} 2. d4 {[%clk 01:22:41]} {[%emt 00:01:29]} d5 {[%clk 01:30:20]}
{[%emt 00:00:17]} 3. Nc3 {[%clk 01:23:00]} {[%emt 00:00:12]} e6 {[%clk
01:28:46]} {[%emt 00:02:05]} 4. Nf3 {[%clk 01:22:27]} {[%emt 00:01:03]} Nd7
{[%clk 01:28:08]} {[%emt 00:01:07]} 5. Bd3 {[%clk 01:21:33]} {[%emt 00:01:23]}
Bd6 {[%clk 01:28:04]} {[%emt 00:00:34]} 6. O-O {[%clk 01:21:10]} {[%emt
00:00:54]} Ne7 {[%clk 01:27:59]} {[%emt 00:00:35]} 7. Re1 {[%clk 01:20:56]}
{[%emt 00:00:44]} O-O {[%emt 00:00:21]} 8. e5 {[%emt 00:00:09]} Bb4 {[%clk
01:27:34]} {[%emt 00:00:25]} 9. Bxh7+ {[%clk 01:21:15]} {[%emt 00:00:11]} Kxh7
{[%clk 01:27:09]} {[%emt 00:00:54]} 10. Ng5+ {[%clk 01:21:42]} {[%emt
00:00:04]} Kg6 {[%clk 01:18:36]} {[%emt 00:09:04]} 11. h4 {[%clk 01:14:02]}
{[%emt 00:08:10]} Rh8 {[%clk 01:07:56]} {[%emt 00:11:10]} 12. Qg4 {[%clk
01:14:26]} {[%emt 00:00:06]} Qb6 {[%clk 01:08:24]} {[%emt 00:00:03]} 13. Nxe6+
{[%clk 01:14:22]} {[%emt 00:00:33]} Rg8 {[%clk 01:01:05]} {[%emt 00:03:00]} 1-0

[Event "Championnat National du Sénégal"]
[Site "Arène National, Pikine, Senegal"]
[Date "2022.11.12"]
[Round "2.1"]
[White "Diop, Wara"]
[Black "Lesbros, Bernard"]
[Result "0-1"]
[TimeControl "01.30 fb .30"]
[WhiteElo "1636"]
[BlackElo "1878"]

1. e4 {[%clk 01:30:46]} {[%emt 00:00:14]} c5 {[%clk 01:30:52]} {[%emt
00:00:08]} 2. Nc3 {[%clk 01:30:16]} {[%emt 00:01:00]} Nc6 {[%clk 01:31:12]}
{[%emt 00:00:10]} 3. g3 {[%clk 01:28:58]} {[%emt 00:01:48]} g6 {[%clk
01:31:29]} {[%emt 00:00:14]} 4. Bg2 {[%clk 01:27:45]} {[%emt 00:01:43]} Bg7
{[%clk 01:31:48]} {[%emt 00:00:11]} 5. d3 {[%clk 01:27:25]} {[%emt 00:00:50]}
d6 {[%clk 01:30:51]} {[%emt 00:01:26]} 6. Be3 {[%clk 01:27:22]} {[%emt
00:00:34]} e6 {[%clk 01:30:54]} {[%emt 00:00:26]} 7. Nge2 {[%clk 01:27:01]}
{[%emt 00:00:51]} Nd4 {[%clk 01:31:09]} {[%emt 00:00:15]} 8. O-O {[%clk
01:24:21]} {[%emt 00:03:09]} Ne7 {[%clk 01:30:52]} {[%emt 00:00:47]} 9. Qd2
{[%clk 01:23:26]} {[%emt 00:01:23]} Qa5 {[%clk 01:30:01]} {[%emt 00:01:23]} 10.
Nc1 {[%clk 01:19:26]} {[%emt 00:04:30]} Bd7 {[%clk 01:25:52]} {[%emt 00:04:42]}
11. Nb3 {[%clk 01:18:43]} {[%emt 00:01:10]} Qc7 {[%clk 01:25:36]} {[%emt
00:00:46]} 12. Rab1 {[%clk 01:14:57]} {[%emt 00:04:16]} O-O {[%clk 01:22:33]}
{[%emt 00:03:33]} 13. Ne2 {[%clk 01:10:22]} {[%emt 00:05:05]} Nxe2+ {[%clk
01:15:26]} {[%emt 00:07:37]} 14. Qxe2 {[%clk 01:10:34]} {[%emt 00:00:17]} a5
{[%clk 01:14:48]} {[%emt 00:01:09]} 15. Nd2 {[%clk 01:10:01]} {[%emt 00:01:03]}
b5 {[%clk 01:10:33]} {[%emt 00:04:45]} 16. e5 {[%clk 01:03:15]} {[%emt
00:07:16]} d5 {[%clk 01:05:54]} {[%emt 00:05:09]} 17. f4 {[%clk 00:58:26]}
{[%emt 00:05:19]} Rfc8 {[%clk 01:01:43]} {[%emt 00:04:42]} 18. c3 {[%clk
00:52:30]} {[%emt 00:06:26]} Nf5 {[%clk 00:55:03]} {[%emt 00:07:10]} 19. Bf2
{[%clk 00:52:27]} {[%emt 00:00:32]} Rab8 {[%clk 00:49:42]} {[%emt 00:05:52]} 20.
g4 {[%clk 00:52:18]} {[%emt 00:00:38]} Ne7 {[%clk 00:50:05]} {[%emt 00:00:07]}
21. Nb3 {[%clk 00:51:34]} {[%emt 00:01:15]} c4 {[%clk 00:41:36]} {[%emt
00:08:58]} 22. Nc5 {[%clk 00:51:35]} {[%emt 00:00:29]} Qd8 {[%clk 00:36:37]}
{[%emt 00:05:28]} 23. d4 {[%clk 00:49:52]} {[%emt 00:02:13]} Nc6 {[%clk
00:33:47]} {[%emt 00:03:21]} 24. Bg3 {[%clk 00:48:56]} {[%emt 00:01:24]} Bf8
{[%clk 00:31:18]} {[%emt 00:03:01]} 25. Nxd7 {[%clk 00:46:06]} {[%emt
00:03:20]} Qxd7 {[%clk 00:31:41]} {[%emt 00:00:07]} 26. f5 {[%clk 00:45:56]}
{[%emt 00:00:38]} b4 {[%clk 00:29:41]} {[%emt 00:02:31]} 27. Rf2 {[%clk
00:43:52]} {[%emt 00:02:35]} bxc3 {[%clk 00:28:04]} {[%emt 00:02:07]} 28. fxg6
{[%clk 00:30:00]} {[%emt 00:14:22]} hxg6 {[%clk 00:22:50]} {[%emt 00:05:44]} 29.
Qd1 {[%clk 00:27:43]} {[%emt 00:02:46]} cxb2 {[%clk 00:22:31]} {[%emt
00:00:49]} 30. h4 {[%clk 00:22:23]} {[%emt 00:05:50]} c3 {[%clk 00:21:18]}
{[%emt 00:01:43]} 31. h5 {[%clk 00:22:09]} {[%emt 00:00:45]} Nxd4 {[%clk
00:19:48]} {[%emt 00:02:00]} 32. hxg6 {[%clk 00:18:49]} {[%emt 00:03:49]} fxg6
{[%clk 00:16:05]} {[%emt 00:04:13]} 33. Qd3 {[%clk 00:12:57]} {[%emt 00:06:22]}
c2 {[%clk 00:13:52]} {[%emt 00:02:44]} 34. Rxc2 {[%clk 00:08:32]} {[%emt
00:04:55]} Rc7 {[%emt 00:00:34]} 35. Rc3 Rxc3 {[%clk 00:13:47]} 36. Bf4 {[%clk
00:07:31]} {[%emt 00:01:30]} Rc2 {[%clk 00:09:28]} 37. Be3 {[%clk 00:07:21]}
{[%emt 00:05:31]} Rbc8 {[%clk 00:05:39]} 38. Bf1 {[%clk 00:06:11]} {[%emt
00:06:00]} Rc1 {[%clk 00:03:39]} 0-1

[Event "Championnat National du Sénégal"]
[Site "Arène National, Pikine, Senegal"]
[Date "2022.11.12"]
[Round "2.4"]
[White "Koné, Sidy"]
[Black "Ly, Abdoulaye Aziz"]
[Result "1/2-1/2"]
[TimeControl "01.30 fb .30"]
[WhiteElo "1400"]
[BlackElo "1400"]

1. e4 {[%clk 01:30:56]} {[%emt 00:00:03]} e5 {[%clk 01:30:53]} {[%emt
00:00:06]} 2. Nc3 {[%clk 01:31:22]} {[%emt 00:00:07]} Nc6 {[%clk 01:31:08]}
{[%emt 00:00:14]} 3. Bc4 {[%clk 01:31:43]} {[%emt 00:00:08]} Bc5 {[%clk
01:30:52]} {[%emt 00:00:47]} 4. Qg4 {[%clk 01:31:46]} {[%emt 00:00:27]} Kf8
{[%clk 01:29:26]} {[%emt 00:01:55]} 5. Qf3 {[%clk 01:31:09]} {[%emt 00:01:08]}
Nf6 {[%clk 01:29:09]} {[%emt 00:00:48]} 6. Nge2 {[%clk 01:30:25]} {[%emt
00:01:13]} d6 {[%clk 01:27:41]} {[%emt 00:01:58]} 7. h3 {[%clk 01:28:19]}
{[%emt 00:02:36]} Na5 {[%clk 01:22:23]} {[%emt 00:05:49]} 8. Bd3 {[%clk
01:20:44]} {[%emt 00:08:04]} a6 {[%clk 01:21:05]} {[%emt 00:01:47]} 9. a3
{[%clk 01:18:12]} {[%emt 00:03:03]} Ba7 {[%clk 01:20:08]} {[%emt 00:01:27]} 10.
O-O {[%clk 01:13:10]} {[%emt 00:05:32]} Be6 {[%clk 01:18:32]} {[%emt 00:02:05]}
11. Nd5 {[%clk 01:07:52]} {[%emt 00:05:49]} c6 {[%clk 01:17:34]} {[%emt
00:01:28]} 12. Nxf6 {[%clk 01:07:08]} {[%emt 00:01:14]} Qxf6 {[%clk 01:17:56]}
{[%emt 00:00:09]} 13. Qxf6 {[%clk 01:07:03]} {[%emt 00:00:35]} gxf6 {[%clk
01:18:18]} {[%emt 00:00:07]} 14. b4 {[%clk 01:06:48]} {[%emt 00:00:46]} Nc4
{[%clk 01:18:38]} {[%emt 00:00:10]} 15. Bxc4 {[%clk 01:05:07]} {[%emt
00:02:10]} Bxc4 {[%clk 01:19:00]} {[%emt 00:00:09]} 16. d3 {[%clk 01:04:54]}
{[%emt 00:00:44]} Be6 {[%clk 01:18:56]} {[%emt 00:00:34]} 17. Be3 {[%clk
01:00:04]} {[%emt 00:05:19]} Rg8 {[%clk 01:15:54]} {[%emt 00:03:32]} 18. Kh2
{[%clk 00:54:26]} {[%emt 00:06:08]} Bb8 {[%clk 01:13:31]} {[%emt 00:02:53]} 19.
f4 {[%clk 00:52:58]} {[%emt 00:01:58]} Ke7 {[%clk 01:12:33]} {[%emt 00:01:28]}
20. Rf3 {[%clk 00:44:40]} {[%emt 00:08:49]} Bc7 {[%clk 01:09:39]} {[%emt
00:03:24]} 21. Rg3 {[%clk 00:42:29]} {[%emt 00:02:41]} f5 {[%clk 00:59:21]}
{[%emt 00:10:48]} 22. exf5 {[%clk 00:35:21]} {[%emt 00:07:38]} Bxf5 {[%clk
00:59:43]} {[%emt 00:00:09]} 23. Rxg8 {[%clk 00:31:05]} {[%emt 00:04:46]} Rxg8
{[%clk 01:00:12]} {[%emt 00:00:01]} 24. g4 {[%clk 00:30:16]} {[%emt 00:01:19]}
Bd7 {[%clk 01:00:24]} {[%emt 00:00:18]} 25. fxe5 {[%clk 00:25:33]} {[%emt
00:05:12]} dxe5 {[%clk 01:00:38]} {[%emt 00:00:15]} 26. Bc5+ {[%clk 00:24:41]}
{[%emt 00:01:22]} Ke8 {[%clk 00:58:55]} {[%emt 00:02:13]} 27. Ng3 {[%clk
00:22:18]} {[%emt 00:02:54]} e4 {[%clk 00:54:56]} {[%emt 00:04:30]} 28. dxe4
{[%clk 00:13:41]} {[%emt 00:09:07]} h5 {[%clk 00:55:10]} {[%emt 00:00:16]} 29.
Kg2 {[%clk 00:09:34]} {[%emt 00:04:37]} hxg4 {[%clk 00:55:12]} {[%emt
00:00:28]} 30. h4 {[%clk 00:06:51]} {[%emt 00:03:13]} Rh8 {[%clk 00:54:01]}
{[%emt 00:01:41]} 31. Rh1 {[%clk 00:06:25]} {[%emt 00:00:55]} Bf4 {[%clk
00:52:04]} {[%emt 00:02:28]} 32. Kf2 {[%clk 00:05:00]} {[%emt 00:01:55]} Be6
{[%clk 00:51:22]} {[%emt 00:01:12]} 33. Bd4 {[%clk 00:03:38]} {[%emt 00:01:51]}
Bxg3+ {[%clk 00:51:22]} {[%emt 00:00:30]} 34. Kxg3 {[%clk 00:03:56]} {[%emt
00:00:13]} Rh5 {[%clk 00:51:50]} {[%emt 00:00:01]} 35. Bf6 {[%clk 00:02:33]}
{[%emt 00:01:54]} c5 {[%clk 00:48:45]} {[%emt 00:03:33]} 36. Rd1 {[%clk
00:02:21]} {[%emt 00:00:43]} Bd7 {[%clk 00:49:04]} {[%emt 00:00:12]} 37. c3
{[%clk 00:02:32]} {[%emt 00:00:19]} Rh6 {[%clk 00:48:04]} {[%emt 00:01:30]} 38.
e5 {[%clk 00:02:07]} {[%emt 00:00:56]} cxb4 {[%clk 00:46:16]} {[%emt 00:02:17]}
39. axb4 {[%clk 00:02:10]} {[%emt 00:00:27]} Rh5 {[%clk 00:46:31]} {[%emt
00:00:14]} 40. Bg5 {[%clk 00:01:51]} {[%emt 00:00:50]} 1/2-1/2

[ePGN "0.1;DGT LiveChess/2.2"]

[Event "Championnat National du Sénégal"]
[Site "Arène National, Pikine, Senegal"]
[Date "2022.11.12"]
[Round "3.2"]
[White "Ly, Abdoulaye Aziz"]
[Black "Bodin-Hulin, Thomas"]
[Result "1/2-1/2"]
[TimeControl "01.30 fb .30"]
[WhiteElo "1400"]
[BlackElo "1838"]

1. e4 {[%clk 01:30:55]} {[%emt 00:00:04]} e6 {[%clk 01:28:27]} {[%emt
00:02:34]} 2. d4 {[%clk 01:31:17]} {[%emt 00:00:07]} d5 {[%clk 01:28:54]}
{[%emt 00:00:03]} 3. Nc3 {[%clk 01:31:40]} {[%emt 00:00:07]} dxe4 {[%clk
01:29:19]} {[%emt 00:00:06]} 4. Nxe4 {[%clk 01:32:03]} {[%emt 00:00:06]} Nd7
{[%clk 01:29:46]} {[%emt 00:00:04]} 5. Nf3 {[%clk 01:31:40]} {[%emt 00:00:53]}
Ngf6 {[%clk 01:29:58]} {[%emt 00:00:17]} 6. Nxf6+ {[%clk 01:29:13]} {[%emt
00:02:57]} Nxf6 {[%clk 01:30:25]} {[%emt 00:00:04]} 7. Bd3 {[%clk 01:29:17]}
{[%emt 00:00:25]} Be7 {[%clk 01:30:19]} {[%emt 00:00:37]} 8. O-O {[%clk
01:28:51]} {[%emt 00:00:55]} O-O {[%clk 01:30:46]} {[%emt 00:00:03]} 9. Qe2
{[%clk 01:27:17]} {[%emt 00:02:04]} b6 {[%clk 01:30:47]} {[%emt 00:00:30]} 10.
Bg5 {[%clk 01:26:10]} {[%emt 00:01:36]} Bb7 {[%clk 01:29:12]} {[%emt 00:02:06]}
11. Rad1 {[%clk 01:23:33]} {[%emt 00:03:05]} h6 {[%clk 01:23:24]} {[%emt
00:06:20]} 12. Bh4 {[%clk 01:21:41]} {[%emt 00:02:22]} Qd5 {[%clk 01:13:32]}
{[%emt 00:10:22]} 13. Bc4 {[%clk 01:14:15]} {[%emt 00:07:55]} Qh5 {[%clk
01:12:42]} {[%emt 00:01:21]} 14. Bg3 {[%clk 01:13:14]} {[%emt 00:01:31]} Rac8
{[%clk 00:53:25]} {[%emt 00:19:47]} 15. Ne5 {[%clk 01:10:20]} {[%emt 00:03:25]}
Qxe2 {[%clk 00:51:58]} {[%emt 00:01:57]} 16. Bxe2 {[%clk 01:10:07]} {[%emt
00:00:42]} Rfd8 {[%clk 00:52:14]} {[%emt 00:00:14]} 17. Bf3 {[%clk 01:08:21]}
{[%emt 00:02:17]} Bxf3 {[%clk 00:42:47]} {[%emt 00:09:56]} 18. Nxf3 {[%clk
01:08:38]} {[%emt 00:00:13]} Nh5 {[%clk 00:38:01]} {[%emt 00:05:16]} 19. Be5
{[%clk 01:04:39]} {[%emt 00:04:27]} Bd6 {[%clk 00:33:47]} {[%emt 00:04:46]} 20.
Rfe1 {[%emt 00:08:36]} Nf4 {[%clk 00:27:19]} 21. Bxf4 {[%clk 01:00:43]} {[%emt
00:03:18]} Bxf4 {[%clk 00:27:41]} {[%emt 00:00:08]} 22. Rd3 {[%clk 01:01:02]}
{[%emt 00:00:10]} c5 {[%clk 00:23:10]} {[%emt 00:05:02]} 23. g3 {[%clk
00:57:29]} {[%emt 00:04:02]} Bd6 {[%clk 00:18:50]} {[%emt 00:04:51]} 24. Red1
{[%clk 00:55:59]} {[%emt 00:02:00]} cxd4 {[%clk 00:15:15]} {[%emt 00:04:05]} 25.
Rxd4 {[%clk 00:55:31]} {[%emt 00:00:58]} Be7 {[%clk 00:15:20]} {[%emt
00:00:25]} 26. Rd7 {[%clk 00:52:54]} {[%emt 00:03:05]} Kf8 {[%clk 00:14:31]}
{[%emt 00:01:22]} 27. c3 {[%clk 00:46:52]} {[%emt 00:06:32]} Ke8 {[%clk
00:12:39]} {[%emt 00:02:22]} 28. Rxd8+ {[%clk 00:46:31]} {[%emt 00:00:50]} Rxd8
{[%clk 00:13:06]} {[%emt 00:00:04]} 29. Rxd8+ {[%clk 00:46:44]} {[%emt
00:00:17]} Bxd8 {[%clk 00:13:15]} {[%emt 00:00:20]} 30. Kf1 {[%clk 00:46:59]}
{[%emt 00:00:16]} Bf6 {[%clk 00:13:00]} {[%emt 00:00:46]} 31. Ke2 {[%clk
00:46:57]} {[%emt 00:00:31]} Kd7 {[%clk 00:13:13]} {[%emt 00:00:17]} 32. Kd3
{[%clk 00:47:06]} {[%emt 00:00:20]} Kd6 {[%clk 00:11:20]} {[%emt 00:02:23]} 33.
Nd2 {[%clk 00:46:27]} {[%emt 00:01:09]} Bd8 {[%clk 00:10:52]} {[%emt 00:00:59]}
34. f4 {[%clk 00:44:31]} {[%emt 00:02:26]} f6 {[%clk 00:09:15]} {[%emt
00:02:08]} 35. a4 {[%clk 00:43:08]} {[%emt 00:01:52]} g5 {[%clk 00:08:05]}
{[%emt 00:01:40]} 36. fxg5 {[%clk 00:41:04]} {[%emt 00:02:33]} hxg5 {[%clk
00:05:04]} {[%emt 00:03:31]} 37. h4 {[%clk 00:37:35]} {[%emt 00:03:59]} gxh4
{[%clk 00:04:45]} {[%emt 00:00:48]} 38. gxh4 {[%clk 00:38:04]} {[%emt
00:00:01]} f5 {[%clk 00:04:00]} {[%emt 00:01:15]} 39. Nc4+ {[%clk 00:35:41]}
{[%emt 00:02:55]} Kd5 {[%clk 00:03:29]} {[%emt 00:01:00]} 40. h5 {[%emt
00:04:53]} Ke5 {[%emt 00:00:04]} 41. Ke4+ Kf6+ {[%emt 00:01:02]} 42. h6 Kg7+
{[%emt 00:00:04]} 43. h7 1/2-1/2